bitfinex/quotes_SOLUSD_20260117
["timestamp","ask_amount","ask_price","bid_price","bid_amount"]
[1768677921509,9.00746434,144.16,144.13,1.12867853]
[1768677923806,6.9370541,144.16,144.13,1.12867853]
[1768677925502,10.10787475,144.16,144.13,1.12867853]
[1768677930413,8.03746451,144.16,144.13,1.12867853]
[1768677935922,8.03746451,144.16,144.13,6.93815169]
[1768677936118,8.03746451,144.16,144.14,1.08866462]
[1768677944025,10.10787475,144.16,144.14,1.08866462]
[1768677945929,10.10787475,144.16,144.12,6.93846315]
[1768677946105,2.07041024,144.15,144.13,1.08866462]
[1768677947017,3.27238789,144.15,144.12,1.08866462]
[1768677949008,3.27238789,144.15,144.12,8.02728672]
[1768677949343,3.27266954,144.15,144.12,8.02728672]
[1768677949719,3.27266954,144.15,144.12,6.9386221]
[1768677949926,3.27266954,144.15,144.13,1.08866462]
[1768677951026,2.07069189,144.15,144.13,1.08866462]
[1768677952217,10.20972364,144.16,144.13,1.08866462]
[1768677965723,1.17774205,144.15,144.12,1.20114202]
[1768677967443,3.24843394,144.15,144.12,1.20114202]
[1768677968130,3.24843394,144.15,144.12,8.13968462]
[1768677968428,2.07069189,144.15,144.13,1.20114202]
[1768677969445,10.18548804,144.16,144.13,1.20114202]
[1768677974551,8.11479615,144.16,144.13,1.20114202]
[1768677974846,10.18548804,144.16,144.13,1.20114202]
[1768677999204,8.11479615,144.16,144.13,1.20114202]
[1768677999405,10.18548804,144.16,144.13,1.20114202]
[1768678004312,8.11479615,144.16,144.13,1.20114202]
[1768678004497,10.18548804,144.16,144.13,1.20114202]
[1768678007513,8.11479615,144.16,144.13,1.20114202]
[1768678007718,10.18548804,144.16,144.13,1.20114202]
[1768678011320,10.18543877,144.16,144.13,1.20114202]
[1768678011515,8.11479615,144.16,144.13,1.20114202]
[1768678011811,10.18543877,144.16,144.13,1.20114202]
[1768678020415,9.00769672,144.16,144.13,1.20114202]
[1768678020620,8.13811376,144.15,144.13,1.20114202]
[1768678020798,3.27143032,144.14,144.11,1.26994076]
[1768678021311,1.2007877,144.13,144.11,1.26994076]
[1768678023424,10.2097323,144.13,144.11,1.26994076]
[1768678023625,10.2097323,144.13,144.09,6.93996031]
[1768678023807,10.2097323,144.13,144.1,1.26994076]
[1768678024626,1.2007877,144.14,144.1,1.26994076]
[1768678025130,1.2007877,144.13,144.1,1.26994076]
[1768678025316,3.27143032,144.13,144.1,1.26994076]
[1768678026324,10.20964223,144.13,144.1,1.26994076]
[1768678028431,8.13899961,144.13,144.1,1.26994076]
[1768678031842,10.20964223,144.13,144.1,1.26994076]
[1768678032027,10.17964224,144.13,144.1,1.26994076]
[1768678036125,8.10899962,144.13,144.1,1.26994076]
[1768678036320,10.17964224,144.13,144.1,1.26994076]
[1768678041353,1.17078771,144.13,144.1,8.20924227]
[1768678041540,8.13889833,144.14,144.11,1.26994076]
[1768678041848,10.20954095,144.14,144.11,1.26994076]
[1768678042050,1.26764984,144.13,144.11,1.26994076]
[1768678054052,1.23764985,144.13,144.11,1.26994076]
[1768678057067,17.34304543,144.15,144.12,1.19797749]
[1768678057239,10.28978737,144.15,144.12,1.19797749]
[1768678063870,2.07064262,144.14,144.12,1.19797749]
[1768678066372,10.28978737,144.15,144.12,1.19797749]
[1768678072593,8.21914475,144.15,144.12,1.19797749]
[1768678072898,10.28978737,144.15,144.12,1.19797749]
[1768678073196,2.07064262,144.14,144.12,1.19797749]
[1768678073394,2.07115506,144.14,144.12,1.19797749]
[1768678073692,8.21914475,144.15,144.12,1.19797749]
[1768678073894,2.07115506,144.14,144.12,1.19797749]
[1768678074789,9.00917266,144.14,144.12,1.19797749]
[1768678081290,6.9380176,144.14,144.12,1.19797749]
[1768678081492,9.00917266,144.14,144.12,1.19797749]
[1768678095814,6.9380176,144.14,144.12,1.19797749]
[1768678095991,9.00917266,144.14,144.12,1.19797749]
[1768678109011,6.9380176,144.14,144.12,1.19797749]
[1768678114542,2.07115506,144.13,144.12,1.19797749]
[1768678114742,9.00917266,144.14,144.12,1.19797749]
[1768678132871,6.9380176,144.14,144.12,1.19797749]
[1768678133080,9.00917266,144.14,144.12,1.19797749]
[1768678133374,9.0089656,144.14,144.12,1.19797749]
[1768678137594,6.9380176,144.14,144.12,1.19797749]
[1768678137799,9.0089656,144.14,144.12,1.19797749]
[1768678141108,9.01074248,144.15,144.12,1.19797749]
[1768678141297,15.94809772,144.15,144.12,1.19797749]
[1768678141800,6.93735524,144.15,144.12,1.19797749]
[1768678148210,8.14409173,144.15,144.12,1.19797749]
[1768678148407,6.93735524,144.15,144.12,1.19797749]
[1768678151402,10.01954198,144.16,144.1,15.95003008]
[1768678151608,10.01954198,144.16,144.11,1.29185542]
[1768678152392,6.93735524,144.15,144.11,1.29185542]
[1768678156945,6.93735524,144.15,144.12,1.29185542]
[1768678160545,8.14409173,144.15,144.12,1.29185542]
[1768678192680,10.21503973,144.15,144.12,1.29185542]
[1768678193280,10.21473259,144.15,144.12,1.29185542]
[1768678199186,1.1781971,144.14,144.1,9.0100726]
[1768678199492,1.1781971,144.14,144.1,10.27731727]
[1768678199692,1.1781971,144.14,144.11,1.26724467]
[1768678200297,1.1781971,144.13,144.1,1.26724467]
[1768678200768,1.1781971,144.13,144.09,6.93992649]
[1768678200769,1.1781971,144.12,144.09,1.26724467]
[1768678201685,1.14819711,144.12,144.09,8.20720929]
[1768678203397,9.00955786,144.12,144.07,8.40791898]
[1768678203578,8.97955787,144.12,144.07,8.40791898]
[1768678203780,1.1781971,144.1,144.07,8.40791898]
[1768678203988,1.14819711,144.1,144.07,8.40791898]
[1768678204881,1.11819712,144.1,144.07,8.40791898]
[1768678210397,8.05787335,144.1,144.07,1.46724467]
[1768678210698,1.14819711,144.09,144.07,0.2]
[1768678210904,1.11819712,144.09,144.07,0.2]
[1768678212101,6.94058856,144.08,144.05,0.2]
[1768678212306,8.98122943,144.08,144.05,0.2]
[1768678213005,1.1781971,144.07,144.05,0.2]
[1768678213299,8.08935697,144.07,144.05,0.2]
[1768678217104,8.11875785,144.09,144.05,1.46724467]
[1768678217406,1.1781971,144.08,144.05,1.46724467]
[1768678219510,1.1781971,144.09,144.05,8.40904577]
[1768678219719,3.24883796,144.09,144.06,1.26724467]
[1768678221714,1.1781971,144.09,144.06,1.26724467]
[1768678222414,8.11845566,144.09,144.06,1.26724467]
[1768678224517,1.1781971,144.09,144.07,1.27987506]
[1768678227217,10.25116482,144.1,144.07,1.27987506]
[1768678232431,8.18052396,144.1,144.07,1.27987506]
[1768678233200,1.19789727,144.11,144.07,1.27987506]
[1768678233400,3.26853813,144.11,144.07,1.27987506]
[1768678234826,6.93962526,144.1,144.07,1.27987506]
[1768678240131,6.93926671,144.11,144.08,1.17539657]
[1768678244429,6.93926671,144.11,144.08,8.11595207]
[1768678244627,6.93926671,144.11,144.09,1.17539657]
[1768678246730,1.19789727,144.12,144.09,1.17539657]
[1768678250637,8.13657335,144.12,144.09,1.17539657]
[1768678267748,6.93867608,144.12,144.1,1.30090789]
[1768678271757,1.18308823,144.14,144.11,3.37209297]
[1768678272254,1.18308823,144.13,144.1,1.30090789]
[1768678272657,6.93785041,144.14,144.11,3.37209297]
[1768678272658,8.12093864,144.14,144.11,3.37209297]
[1768678275850,19.41332417,144.16,144.11,3.37209297]
[1768678275851,8.12049449,144.15,144.12,1.30090789]
[1768678287970,1.24509475,144.14,144.11,1.26197824]
[1768678289987,8.18322612,144.14,144.11,1.26197824]
[1768678293068,8.18322612,144.14,144.11,1.20197824]
[1768678298767,1.31448195,144.13,144.1,1.24328008]
[1768678298974,1.31448195,144.12,144.09,1.24328008]
[1768678300076,8.25319239,144.12,144.09,1.24328008]
[1768678307682,0.1306253,144.11,144.09,1.24328008]
[1768678309292,0.1306253,144.11,144.09,3.31446516]
[1768678309483,0.1306253,144.11,144.09,10.25449306]
[1768678309784,0.1306253,144.11,144.09,8.18330798]
[1768678311581,0.1306253,144.11,144.1,1.24328008]
[1768678311781,1.31448195,144.14,144.11,1.24328008]
[1768678312486,8.2523363,144.14,144.11,1.24328008]
[1768678314385,8.2523363,144.14,144.11,8.18241837]
[1768678323087,23.44445678,144.15,144.12,1.25078894]
[1768678323276,8.24445678,144.15,144.12,1.25078894]
[1768678325273,6.93736452,144.15,144.12,1.25078894]
[1768678330300,8.24348257,144.17,144.13,3.32157768]
[1768678330500,8.24348257,144.17,144.14,1.19078894]
[1768678331004,6.93639031,144.17,144.14,2.07078874]
[1768678332191,6.93639031,144.17,144.13,9.00853779]
[1768678332511,1.30709226,144.17,144.14,1.25078894]
[1768678333006,1.30709226,144.17,144.14,1.19078894]
[1768678334609,8.24343208,144.17,144.14,1.19078894]
[1768678337005,6.93633982,144.17,144.14,1.19078894]
[1768678337206,1.30709226,144.16,144.13,1.25078894]
[1768678340026,8.24383905,144.16,144.13,1.25078894]
[1768678340324,8.24383905,144.16,144.13,8.18896117]
[1768678340695,1.30709226,144.16,144.14,1.25078894]
[1768678340900,1.30709226,144.16,144.14,1.19078894]
[1768678353021,1.31678172,144.15,144.12,1.24873054]
[1768678354513,8.25425127,144.15,144.12,1.24873054]
[1768678359451,6.93746955,144.15,144.12,1.24873054]
[1768678359740,8.211473,144.14,144.11,1.33130636]
[1768678361942,1.27375708,144.13,144.1,1.33130636]
[1768678364842,8.211473,144.14,144.1,1.33130636]
[1768678367771,8.211473,144.14,144.11,1.33130636]
[1768678369560,8.211473,144.14,144.11,10.34122148]
[1768678374577,1.27375708,144.14,144.11,10.34122148]
[1768678376686,8.21149856,144.14,144.11,3.4020951]
[1768678377280,8.21149856,144.14,144.11,3.40196475]
[1768678378962,8.21149856,144.14,144.11,1.33130636]
[1768678381985,1.21095101,144.13,144.11,1.33130636]
[1768678382485,1.21095101,144.13,144.1,10.34179871]
[1768678385802,8.14869249,144.14,144.11,1.33170463]
[1768678391096,6.93774148,144.14,144.11,1.33170463]
[1768678391696,8.14869249,144.14,144.11,1.33170463]
[1768678401308,6.93721817,144.15,144.12,1.33170463]
[1768678401610,6.93721817,144.15,144.13,1.33170463]
[1768678402912,6.93721817,144.15,144.13,3.40236302]
[1768678403914,6.93673695,144.16,144.13,1.33170463]
[1768678407723,64.72254157,144.23,144.11,24.28668821]
[1768678408016,0.1,144.25,144.2,2.07065839]
[1768678408208,1.36777301,144.26,144.24,25.77090994]
[1768678408209,0.1,144.26,144.24,25.77090994]
[1768678408423,1.36777301,144.28,144.25,2.07065839]
[1768678408637,0.1,144.29,144.27,2.07065839]
[1768678408845,0.1,144.29,144.26,0.1]
[1768678408846,1.36777302,144.3,144.28,2.07065839]
[1768678409347,0.10000001,144.3,144.28,2.07065839]
[1768678409509,0.1,144.31,144.29,2.07065839]
[1768678409707,0.1,144.31,144.3,2.07065839]
[1768678410216,1.36777301,144.32,144.3,2.07065839]
[1768678410420,1.36777301,144.32,144.28,6.9308347]
[1768678410421,1.36777301,144.32,144.28,9.00149309]
[1768678410645,1.36777301,144.32,144.29,2.07065839]
[1768678410827,1.36777301,144.32,144.29,9.00110229]
[1768678411032,1.36777301,144.32,144.29,9.02741708]
[1768678411414,1.36777301,144.32,144.29,2.07065839]
[1768678412934,8.2968392,144.32,144.29,2.07065839]
[1768678413327,8.2968392,144.32,144.28,9.02780619]
[1768678415139,8.2968392,144.32,144.29,0.06557884]
[1768678418659,8.2968392,144.32,144.29,2.13623723]
[1768678418854,1.36777301,144.32,144.29,2.13623723]
[1768678419728,1.36777301,144.32,144.29,0.06557884]
[1768678420343,8.29682043,144.32,144.29,0.06557884]
[1768678421039,1.36777301,144.32,144.29,6.99606605]
[1768678421234,1.36777301,144.32,144.3,2.07065839]
[1768678421438,1.36777301,144.32,144.29,6.99606605]
[1768678421752,1.36777301,144.32,144.28,6.93085787]
[1768678421946,1.36777301,144.32,144.28,9.00151626]
[1768678422263,1.36777301,144.32,144.28,8.25120329]
[1768678422638,1.36777301,144.32,144.29,1.32034542]
[1768678423468,1.32953303,144.31,144.27,9.00210636]
[1768678423934,1.32953303,144.31,144.27,10.32245178]
[1768678424138,1.32953303,144.31,144.28,3.39100381]
[1768678424338,7.02925789,144.32,144.29,3.39100381]
[1768678424756,7.02925789,144.32,144.29,1.32034542]
[1768678426364,8.35879092,144.32,144.29,1.32034542]
[1768678429568,0.1,144.32,144.3,1.32034542]
[1768678433265,1.32953303,144.33,144.3,1.32034542]
[1768678434558,8.25852014,144.33,144.3,1.32034542]
[1768678437954,1.45862182,144.32,144.29,3.40071748]
[1768678438260,1.45862182,144.32,144.29,1.3354336]
[1768678438665,8.3877116,144.32,144.29,1.3354336]
[1768678439268,5.45723563,144.32,144.29,1.3354336]
[1768678440150,24.24998266,144.33,144.29,1.3354336]
[1768678440351,26.31526654,144.33,144.29,1.3354336]
[1768678440551,26.31526654,144.33,144.27,3.40071748]
[1768678440771,2.06528388,144.32,144.27,3.40071748]
[1768678440971,2.06528388,144.32,144.27,1.3354336]
[1768678441360,1.45862182,144.31,144.27,1.3354336]
[1768678441549,1.45862182,144.3,144.27,1.3354336]
[1768678442257,8.38894116,144.3,144.27,1.3354336]
[1768678444455,6.92964661,144.31,144.27,1.3354336]
[1768678444679,8.38826843,144.31,144.27,3.40071748]
[1768678444859,8.38826843,144.31,144.28,1.3354336]
[1768678448685,6.92964661,144.31,144.28,1.3354336]
[1768678448987,8.38826843,144.31,144.28,1.3354336]
[1768678450869,6.92904656,144.32,144.29,1.3354336]
[1768678451203,6.92904656,144.32,144.29,3.40071748]
[1768678451688,6.92904656,144.32,144.29,1.3354336]
[1768678458498,8.38766838,144.32,144.29,1.3354336]
[1768678459996,8.38766838,144.32,144.27,8.9965561]
[1768678459997,0.1,144.34,144.31,1.21278111]
[1768678460199,1.55862182,144.34,144.31,1.21278111]
[1768678460388,0.1,144.34,144.31,1.21278111]
[1768678460579,0.1,144.34,144.32,1.21278111]
[1768678460892,0.1,144.34,144.32,3.27806499]
[1768678463104,0.1,144.34,144.33,2.06528388]
[1768678463279,1.45862182,144.35,144.33,2.06528388]
[1768678464797,1.45862182,144.35,144.32,10.20708123]
[1768678464986,1.45862182,144.35,144.32,8.14179735]
[1768678465889,8.3862969,144.35,144.32,1.21278111]
[1768678478910,1.64003119,144.34,144.3,3.63573318]
[1768678479102,1.64003119,144.34,144.3,2.06528388]
[1768678479817,1.64003119,144.34,144.29,103.5]
[1768678479818,1.64003119,144.33,144.29,2.06528388]
[1768678481216,6.92904656,144.32,144.29,2.06528388]
[1768678481416,6.92904656,144.32,144.29,2.10361748]
[1768678481714,6.92904656,144.32,144.29,0.0383336]
[1768678482208,8.56907775,144.32,144.29,0.0383336]
[1768678482712,8.56907775,144.32,144.29,2.10361748]
[1768678483103,6.92904656,144.32,144.3,0.07578629]
[1768678483415,1.64003119,144.33,144.3,2.14107017]
[1768678484621,6.92904656,144.32,144.3,2.14107017]
[1768678486398,8.56862999,144.33,144.3,2.14107017]
[1768678491923,8.56862999,144.33,144.31,2.06528388]
[1768678493828,8.56862999,144.33,144.3,0.07578629]
[1768678493829,8.56862999,144.33,144.3,2.14107017]
[1768678499326,8.56862999,144.33,144.3,2.14058112]
[1768678500434,8.56862999,144.33,144.3,0.07578629]
[1768678500622,8.56862999,144.33,144.3,2.14058112]
[1768678502816,8.56862999,144.33,144.31,2.46399003]
[1768678502817,6.9285988,144.33,144.31,2.46399003]
[1768678503218,6.9285988,144.33,144.31,2.06479483]
[1768678503417,8.82598059,144.33,144.31,2.06479483]
[1768678506337,8.82598059,144.33,144.3,2.47825989]
[1768678515751,8.82598059,144.33,144.3,0.41346506]
[1768678516055,8.82598059,144.33,144.3,2.47825989]
[1768678518960,1.89738179,144.32,144.28,6.93082706]
[1768678519143,1.89738179,144.38,144.32,0.62077816]
[1768678519328,1.89738179,144.36,144.33,2.06479483]
[1768678520435,6.92755358,144.36,144.33,2.06479483]
[1768678520637,1.89738179,144.35,144.33,2.06479483]
[1768678524959,1.89738179,144.35,144.32,0.62077816]
[1768678525162,1.89738179,144.35,144.33,2.06479483]
[1768678525958,8.82517828,144.35,144.33,2.06479483]
[1768678529357,1.99888644,144.34,144.32,2.06479483]
[1768678530746,1.99888644,144.34,144.33,2.06479483]
[1768678532751,8.92679809,144.35,144.33,2.06479483]
[1768678534264,1.99888644,144.35,144.33,2.06479483]
[1768678537873,9.14311318,144.37,144.34,4.22660732]
[1768678538168,2.21636387,144.35,144.33,2.06479483]
[1768678538765,2.21636387,144.35,144.33,4.22660732]
[1768678538967,2.21636387,144.35,144.34,2.06479483]
[1768678539163,9.14311318,144.37,144.34,2.06479483]
[1768678539368,2.21636387,144.37,144.36,2.06479483]
[1768678539687,2.21636387,144.37,144.36,2.00479483]
[1768678540059,2.21636387,144.37,144.35,2.06479483]
[1768678540264,2.21636387,144.36,144.33,9.09032923]
[1768678540463,2.21636387,144.36,144.33,11.15512406]
[1768678541582,9.14349719,144.36,144.33,4.22660732]
[1768678543878,9.14349719,144.36,144.33,2.16181249]
[1768678545575,2.59025477,144.41,144.36,2.16181249]
[1768678545759,2.59025477,144.41,144.37,2.06479483]
[1768678545954,2.59025477,144.41,144.36,4.22660732]
[1768678546154,2.59025477,144.41,144.37,2.16181249]
[1768678546374,2.59025477,144.41,144.37,4.22660732]
[1768678547173,2.59025477,144.41,144.38,2.16181249]
[1768678547370,9.51515991,144.41,144.38,2.16181249]
[1768678548675,9.51507547,144.41,144.38,2.16181249]
[1768678552065,24.67507547,144.41,144.38,2.16181249]
[1768678553679,2.31190797,144.4,144.38,2.16181249]
[1768678556882,9.23713032,144.4,144.38,2.16181249]
[1768678558383,24.39713032,144.4,144.38,2.10181249]
[1768678558967,15.16,144.4,144.37,2.06479483]
[1768678559280,15.16,144.4,144.38,2.06262925]
[1768678560284,0.3738909,144.41,144.38,8.98867896]
[1768678560463,0.3738909,144.41,144.39,2.06262925]
[1768678560785,7.29866255,144.41,144.39,2.00262925]
[1768678561362,7.29866255,144.41,144.38,2.09766069]
[1768678561577,0.3738909,144.41,144.39,0.05225029]
[1768678561890,0.3738909,144.41,144.39,2.11487954]
[1768678564389,0.27117782,144.41,144.4,0.10271297]
[1768678566076,15.16,144.43,144.41,0.03313823]
[1768678568278,24.39570935,144.43,144.4,0.06550794]
[1768678568477,9.23570935,144.43,144.4,0.06550794]
[1768678568883,6.92380138,144.43,144.4,0.06550794]
[1768678569193,9.23536318,144.44,144.4,6.99064108]
[1768678574202,9.23536318,144.44,144.4,0.06550794]
[1768678574492,2.31190797,144.43,144.4,0.06550794]
[1768678576604,9.23576994,144.43,144.4,0.06550794]
[1768678577305,2.31190797,144.42,144.38,2.2649435]
[1768678577493,2.31190797,144.42,144.38,0.20231425]
[1768678578989,24.39645242,144.42,144.38,0.20231425]
[1768678580207,2.31190797,144.41,144.38,6.92611284]
[1768678580503,2.31190797,144.41,144.38,9.23361651]
[1768678580803,15.16,144.42,144.39,2.30750367]
[1768678582190,15.16,144.42,144.39,9.23299402]
[1768678584007,17.71882558,144.42,144.39,9.23299402]
[1768678586700,17.71882558,144.42,144.39,7.17036477]
[1768678586900,17.71882558,144.42,144.39,9.23299402]
[1768678587210,9.48211552,144.44,144.4,0.3514159]
[1768678587403,24.64211552,144.44,144.4,0.3514159]
[1768678587608,17.71882558,144.44,144.41,0.3514159]
[1768678587810,15.16,144.44,144.42,0.3514159]
[1768678588112,9.48175565,144.45,144.42,0.3514159]
[1768678588993,2.55882558,144.45,144.42,9.33819754]
[1768678589188,24.64127825,144.46,144.42,7.27556829]
[1768678589383,24.64127825,144.46,144.42,9.33819754]
[1768678590788,24.64127825,144.46,144.43,0.38885383]
[1768678592321,24.64127825,144.46,144.43,2.45148308]
[1768678593516,24.64127825,144.46,144.43,2.06262925]
[1768678593722,2.61784653,144.45,144.42,9.42354881]
[1768678596912,2.61784653,144.45,144.4,120.81240356]
[1768678596913,9.54067453,144.45,144.41,7.395806]
[1768678597094,2.61784653,144.44,144.42,2.06262925]
[1768678598013,2.61784653,144.44,144.41,8.98715248]
[1768678599496,2.61784653,144.44,144.41,6.92452323]
[1768678599733,2.61784653,144.44,144.41,8.98715248]
[1768678607318,2.61784653,144.44,144.41,6.92452323]
[1768678608994,2.61784653,144.44,144.41,8.98715248]
[1768678609726,2.61784653,144.44,144.41,6.92452323]
[1768678609927,2.61784653,144.44,144.41,8.98715248]
[1768678613229,2.61784653,144.44,144.41,6.92452323]
[1768678614414,2.62757805,144.43,144.39,105.56262925]
[1768678614612,2.62757805,144.42,144.39,2.72115023]
[1768678614810,15.16,144.43,144.4,4.71270912]
[1768678615011,15.16,144.43,144.4,11.63788586]
[1768678615209,15.16,144.43,144.41,2.06262925]
[1768678615810,15.16,144.43,144.39,8.98816957]
[1768678616432,22.08389671,144.43,144.39,11.63824944]
[1768678616828,2.62757805,144.42,144.39,11.63824944]
[1768678617028,2.59757806,144.42,144.39,11.63824944]
[1768678621431,2.59757806,144.42,144.39,11.63763989]
[1768678624917,2.56757807,144.42,144.39,11.63763989]
[1768678625831,2.56757807,144.42,144.4,2.0620197]
[1768678626843,2.56757807,144.42,144.39,11.63763989]
[1768678627034,22.08389671,144.43,144.39,11.63763989]
[1768678628935,2.62757805,144.42,144.39,11.63763989]
[1768678634347,2.62757805,144.42,144.4,2.0620197]
[1768678635735,17.78757805,144.43,144.41,2.0620197]
[1768678635936,2.62757805,144.43,144.41,2.0620197]
[1768678636656,2.62757805,144.43,144.4,9.57486579]
[1768678636853,2.62757805,144.43,144.4,11.63688549]
[1768678650563,2.62757805,144.43,144.4,9.57486579]
[1768678650759,2.62757805,144.43,144.4,11.63688549]
[1768678653371,2.62757805,144.43,144.41,2.0620197]
[1768678653549,2.99379923,144.46,144.43,3.01815525]
[1768678653864,2.99379923,144.46,144.44,2.0620197]
[1768678654258,2.99379923,144.46,144.43,5.08017495]
[1768678654453,2.99379923,144.46,144.43,12.00387786]
[1768678655353,2.99379923,144.46,144.44,2.0620197]
[1768678659170,9.91657469,144.46,144.4,3.01815525]
[1768678659365,2.99379923,144.45,144.42,12.00439684]
[1768678660952,2.99379923,144.45,144.42,9.94237714]
[1768678661148,2.99379923,144.45,144.42,12.00439684]
[1768678661542,6.92277546,144.46,144.43,2.0620197]
[1768678661749,15.16,144.46,144.44,3.01815525]
[1768678662063,15.16,144.46,144.44,5.08017495]
[1768678663341,0.1,144.47,144.45,3.01815525]
[1768678663550,3.09379923,144.48,144.46,2.0620197]
[1768678663948,2.0620197,144.47,144.4,6.92309816]
[1768678664152,2.99379923,144.45,144.41,2.0620197]
[1768678664368,2.99379923,144.45,144.42,8.98597618]
[1768678665674,2.99379923,144.45,144.42,6.92395648]
[1768678669076,9.91662451,144.45,144.42,6.92395648]
[1768678669264,2.99379923,144.44,144.41,6.92455443]
[1768678669468,2.96379924,144.44,144.4,105.63286302]
[1768678669653,6.92282528,144.45,144.41,2.16286301]
[1768678669856,6.92282528,144.45,144.42,2.16286301]
[1768678670172,24.14432702,144.47,144.43,6.9237693]
[1768678671479,2.99379923,144.46,144.43,6.9237693]
[1768678674760,2.99379923,144.46,144.43,9.00971849]
[1768678680363,9.91621267,144.46,144.43,2.08594919]
[1768678682593,9.91621267,144.46,144.43,9.009662]
[1768678686093,9.91621267,144.46,144.43,2.08594919]
[1768678686287,3.12081272,144.45,144.42,8.98539503]
[1768678686488,3.12081272,144.45,144.42,6.92408572]
[1768678686804,3.12081272,144.45,144.42,8.8708995]
[1768678691696,3.09081273,144.45,144.42,8.8708995]
[1768678693178,3.06081274,144.45,144.42,8.8708995]
[1768678702409,3.06081274,144.45,144.42,10.93220881]
[1768678706530,3.06081274,144.45,144.42,8.8708995]
[1768678706731,3.06081274,144.45,144.42,10.93220881]
[1768678711135,3.06081274,144.45,144.42,8.8708995]
[1768678712737,3.06081274,144.45,144.42,6.92408572]
[1768678720945,3.06081274,144.45,144.42,8.61350219]
[1768678726660,3.06081274,144.45,144.42,10.6748115]
[1768678729956,3.06081274,144.45,144.42,8.61350219]
[1768678739542,2.62762073,144.44,144.41,110.42451743]
[1768678739846,2.62762073,144.44,144.41,8.98582674]
[1768678741763,2.62762073,144.44,144.41,10.5373322]
[1768678743349,2.62762073,144.44,144.41,10.53754162]
[1768678749367,2.62762073,144.44,144.42,8.98540487]
[1768678752070,6.92246341,144.46,144.42,8.98540487]
[1768678754074,2.62762073,144.45,144.42,8.98540487]
[1768678754370,2.62762073,144.45,144.42,6.92388614]
[1768678754569,2.62762073,144.44,144.42,6.92388614]
[1768678759181,6.92337536,144.44,144.38,2.79271045]
[1768678759388,6.92337536,144.44,144.39,4.85422918]
[1768678760189,6.92337536,144.44,144.41,2.79271045]
[1768678761190,8.4579855,144.44,144.41,2.79271045]
[1768678763486,1.52339861,144.43,144.4,11.56234249]
[1768678763687,1.49339862,144.43,144.4,11.56234249]
[1768678763890,1.46339863,144.43,144.4,11.56234249]
[1768678764271,1.46339863,144.43,144.4,9.50082376]
[1768678765486,8.38723575,144.43,144.4,2.57602596]
[1768678765986,1.4549166,144.42,144.39,6.92548791]
[1768678766163,1.42491661,144.42,144.39,6.92548791]
[1768678766770,1.42491661,144.42,144.39,9.50151387]
[1768678774682,10.3651692,144.43,144.4,2.697756]
[1768678775878,1.3756186,144.42,144.39,6.92548791]
[1768678776199,1.3756186,144.42,144.39,9.62324391]
[1768678776797,1.34561861,144.42,144.39,9.62324391]
[1768678777107,8.2698944,144.42,144.39,9.62324391]
[1768678778101,8.2698944,144.42,144.39,2.697756]
[1768678779215,1.33332123,144.41,144.38,9.62372625]
[1768678779387,1.30332124,144.41,144.38,9.62372625]
[1768678780014,17.30768198,144.45,144.39,9.62335009]
[1768678780015,8.9854924,144.43,144.39,9.62335009]
[1768678781415,8.21574555,144.42,144.39,9.62335009]
[1768678782029,8.21574555,144.42,144.39,2.697756]
[1768678785341,10.27726428,144.42,144.39,2.697756]
[1768678789629,10.24726429,144.42,144.39,2.697756]
[1768678789805,8.98582153,144.42,144.38,2.697756]
[1768678791835,1.22483419,144.4,144.37,9.62423435]
[1768678792034,1.1948342,144.4,144.37,9.62423435]
[1768678796935,1.16483421,144.4,144.37,9.62423435]
[1768678799538,1.16483421,144.4,144.37,6.92647835]
[1768678799716,1.16483421,144.4,144.37,9.63527242]
[1768678803433,1.13483422,144.4,144.37,9.63527242]
[1768678806243,10.07345847,144.41,144.37,9.63527242]
[1768678815941,10.07345847,144.41,144.36,2.06314484]
[1768678815942,1.06176757,144.43,144.39,2.06314484]
[1768678816258,1.06176757,144.43,144.4,2.70879407]
[1768678819849,10.03876173,144.44,144.41,2.70879407]
[1768678823533,8.98674432,144.44,144.4,2.7205738]
[1768678823729,1.04044654,144.43,144.4,2.7205738]
[1768678825962,1.04044654,144.43,144.4,9.64577286]
[1768678828965,7.96426523,144.43,144.4,9.64577286]
[1768678829133,6.92381869,144.43,144.4,9.64577286]
[1768678829850,1.02741549,144.45,144.41,2.7205738]
[1768678830061,2.06314484,144.44,144.41,2.7205738]
[1768678830443,3.09056033,144.45,144.41,2.7205738]
[1768678830642,2.66214169,144.44,144.41,2.7205738]
[1768678831571,9.58560851,144.44,144.41,2.7205738]
[1768678836072,2.62003668,144.43,144.4,2.61270771]
[1768678836971,4.68318152,144.44,144.41,2.61270771]
[1768678837178,2.62003668,144.44,144.41,2.61270771]
[1768678838370,6.92323025,144.45,144.42,2.61270771]
[1768678841576,11.60568879,144.46,144.43,2.61270771]
[1768678841876,11.60568879,144.46,144.43,2.55270771]
[1768678842080,9.54254395,144.46,144.43,2.55270771]
[1768678850582,11.60568879,144.46,144.43,2.55270771]
[1768678850985,9.54254395,144.46,144.43,2.55270771]
[1768678851157,11.60568879,144.46,144.43,2.55270771]
[1768678857089,9.54254395,144.46,144.43,2.55270771]